Workbook

Sheet Sheet1
A1: 主材招标采购报价单招标编号：TYZB-2022-020
A2: 招标单位：山东方垠智能制造有限公司 联系人：李强 0538-6629816 18553806339
A3: 投标地址：tieyingzhaobiao@139.com 开标时间：2022-9-27 11:00
A4: 报价单位（盖章）： 联系人：
A5: 注意以上报价内容为（不可更改无二次报价机会）：1、国标货、 送到济南济阳方垠智装厂区内（销售单至少两份、红章材质书随货同行）、过磅含税含运费价；2、付款方式为货到需方质检合格、收货后付款（收货三日内）；3、收货方式按照需方过磅重量（磅差千分之一以内）电汇结算；4、结算前需提供原厂材质书（红章）、购销合同、收据、发票等相关凭据；5、供货周期为三日内到全；6、本次报价请各报价单位按照自己公司优势选着性报价，同时允许多个包件同时报价，我公司按照单项低价选择中标。
A6: 方垠智装 材料需求计划表 | J6: 要求 | K6: 供应商填
A7: 工程名称：齐河县纬二十路学校项目（第一批） | G7: 采购计划编号：09-07 | K7: 报价 | L7: 品牌 | M7: 到货时间 | N7: 其他备注
A8: 类型2 | B8: 序号 | C8: 材质 | D8: 规格（mm） | F8: 数量（m） | G8: 数量 | H8: 重量（T） | I8: 备注
A9: 板材 | B9: 1 | C9: Q355B | D9: 6 | F9: 9000 | H9: 1.36 | I9: 保力学性能 | J9: 国标、材质与标号一致
B10: 2 | C10: Q355B | D10: 8 | F10: 9000 | H10: 2.96 | J10: 国标、材质与标号一致
B11: 3 | C11: Q355B | D11: 10 | F11: 9000 | H11: 4.47 | J11: 国标、材质与标号一致
B12: 4 | C12: Q355B | D12: 12 | F12: 9000 | H12: 21.55 | J12: 国标、材质与标号一致
B13: 5 | C13: Q355B | D13: 14 | E13: 1800 | F13: 9000 | H13: 14.68 | J13: 国标、材质与标号一致
B14: 6 | C14: Q355B | D14: 16 | E14: 2500 | H14: 286.55 | J14: 国标、材质与标号一致
B15: 7 | C15: Q355B | D15: 18 | E15: 2500 | H15: 109.41 | J15: 国标、材质与标号一致
B16: 8 | C16: Q355B | D16: 20 | E16: 2500 | H16: 78.86 | J16: 国标、材质与标号一致
B17: 9 | C17: Q355B | D17: 22 | H17: 26.82 | J17: 国标、材质与标号一致
B18: 10 | C18: Q355B | D18: 25 | H18: 36.19 | J18: 国标、材质与标号一致
B19: 11 | C19: Q355B | D19: 28 | H19: 28.91 | J19: 国标、材质与标号一致
B20: 12 | C20: Q355B | D20: 30 | H20: 25.56 | J20: 国标、材质与标号一致
B21: 13 | C21: Q355B | D21: 40 | H21: 2.57 | J21: 国标、材质与标号一致
B22: 14 | C22: 小计 | H22: =SUM(H9:H21) -> 639.889 | J22: 国标、材质与标号一致
A23: 类型2 | B23: 序号 | C23: 材质 | D23: 规格（mm） | F23: 长度（m） | G23: 数量 | H23: 重量（T） | I23: 备注
A24: 型材 | B24: 1 | C24: 板带（Q235B） | D24: 6*30 | F24: 7600.00 | H24: 10.74 | J24: 国标、材质与标号一致
B25: 2 | C25: 小计 | H25: =SUM(H24:H24) -> 10.74
A26: 工程名称：齐河县纬二十路学校项目（第一批纵剪板） | G26: 采购计划编号：09-08
A27: 类型2 | B27: 序号 | C27: 材质 | D27: 规格（mm） | F27: 数量（m） | G27: 数量 | H27: 重量（T） | I27: 备注
A28: 板条 | B28: 钢板 | C28: Q355B | D28: 6 | E28: 284 | F28: 3280.00 | G28: 2 | H28: =D28*E28/1000*F28/1000*7.85/1000*G28 -> 0.088 | I28: 3#楼纵剪板板条，过磅结算 | J28: 国标
C29: Q355B | D29: 6 | E29: 284 | F29: 3080.00 | G29: 2 | H29: =D29*E29/1000*F29/1000*7.85/1000*G29 -> 0.082 | J29: 国标
C30: Q355B | D30: 6 | E30: 284 | F30: 950.00 | G30: 4 | H30: =D30*E30/1000*F30/1000*7.85/1000*G30 -> 0.051 | J30: 国标
C31: Q355B | D31: 6 | E31: 284 | F31: 750.00 | G31: 4 | H31: 0.040 | J31: 国标
C32: Q355B | D32: 6 | E32: 284 | F32: 2600.00 | G32: 8 | H32: 0.278 | J32: 国标
C33: Q355B | D33: 6 | E33: 284 | F33: 2500.00 | G33: 2 | H33: 0.067 | J33: 国标
C34: Q355B | D34: 6 | E34: 164 | F34: 369.00 | G34: 4 | H34: 0.011 | J34: 国标
C35: Q355B | D35: 6 | E35: 164 | F35: 318.00 | G35: 6 | H35: 0.015 | J35: 国标
C36: Q355B | D36: 6 | E36: 164 | F36: 170.00 | G36: 4 | H36: 0.005 | J36: 国标
C37: Q355B | D37: 6 | E37: 164 | F37: 2861.00 | G37: 4 | H37: 0.088 | J37: 国标
C38: Q355B | D38: 6 | E38: 164 | F38: 2894.00 | G38: 4 | H38: 0.089 | J38: 国标
C39: Q355B | D39: 6 | E39: 164 | F39: 338.00 | G39: 2 | H39: 0.005 | J39: 国标
C40: Q355B | D40: 6 | E40: 164 | F40: 2701.00 | G40: 4 | H40: 0.083 | J40: 国标
C41: Q355B | D41: 6 | E41: 164 | F41: 2711.00 | G41: 4 | H41: 0.084 | J41: 国标
C42: Q355B | D42: 6 | E42: 284 | F42: 4080.00 | G42: 1 | H42: 0.055 | J42: 国标
C43: Q355B | D43: 6 | E43: 284 | F43: 4005.00 | G43: 2 | H43: 0.107 | J43: 国标
C44: Q355B | D44: 6 | E44: 284 | F44: 1575.00 | G44: 4 | H44: 0.084 | J44: 国标
C45: Q355B | D45: 6 | E45: 284 | F45: 2510.00 | G45: 2 | H45: 0.067 | J45: 国标
C46: Q355B | D46: 6 | E46: 284 | F46: 3525.00 | G46: 3 | H46: 0.141 | J46: 国标
C47: Q355B | D47: 6 | E47: 164 | F47: 187.00 | G47: 3 | H47: 0.004 | J47: 国标
C48: Q355B | D48: 6 | E48: 164 | F48: 349.00 | G48: 9 | H48: 0.024 | J48: 国标
C49: Q355B | D49: 6 | E49: 164 | F49: 2721.00 | G49: 3 | H49: 0.063 | J49: 国标
C50: Q355B | D50: 6 | E50: 164 | F50: 2901.00 | G50: 6 | H50: 0.134 | J50: 国标
C51: Q355B | D51: 6 | E51: 164 | F51: 2719.00 | G51: 3 | H51: 0.063 | J51: 国标
C52: Q355B | D52: 6 | E52: 284 | F52: 3265.00 | G52: 4 | H52: 0.175 | J52: 国标
C53: Q355B | D53: 6 | E53: 284 | F53: 2040.00 | G53: 2 | H53: 0.055 | J53: 国标
C54: Q355B | D54: 6 | E54: 284 | F54: 990.00 | G54: 2 | H54: 0.026 | J54: 国标
C55: Q355B | D55: 6 | E55: 284 | F55: 365.00 | G55: 2 | H55: 0.010 | J55: 国标
C56: Q355B | D56: 6 | E56: 284 | F56: 2090.00 | G56: 1 | H56: 0.028 | J56: 国标
C57: Q355B | D57: 6 | E57: 284 | F57: 2065.00 | G57: 6 | H57: 0.166 | J57: 国标
C58: Q355B | D58: 6 | E58: 284 | F58: 2965.00 | G58: 4 | H58: 0.159 | J58: 国标
C59: Q355B | D59: 6 | E59: 284 | F59: 1990.00 | G59: 1 | H59: 0.027 | J59: 国标
C60: Q355B | D60: 6 | E60: 430 | F60: 2050.00 | G60: 1 | H60: 0.042 | J60: 国标
C61: Q355B | D61: 6 | E61: 430 | F61: 2375.00 | G61: 1 | H61: 0.048 | J61: 国标
C62: Q355B | D62: 6 | E62: 430 | F62: 6790.00 | G62: 2 | H62: 0.275 | J62: 国标
C63: Q355B | D63: 6 | E63: 430 | F63: 6740.00 | G63: 14 | H63: 1.911 | J63: 国标
C64: Q355B | D64: 6 | E64: 430 | F64: 6965.00 | G64: 4 | H64: 0.564 | J64: 国标
C65: Q355B | D65: 6 | E65: 430 | F65: 6940.00 | G65: 36 | H65: 5.060 | J65: 国标
C66: Q355B | D66: 6 | E66: 430 | F66: 6745.00 | G66: 8 | H66: 1.093 | J66: 国标
C67: Q355B | D67: 6 | E67: 430 | F67: 2470.00 | G67: 1 | H67: 0.050 | J67: 国标
C68: Q355B | D68: 6 | E68: 430 | F68: 770.00 | G68: 3 | H68: 0.047 | J68: 国标
C69: Q355B | D69: 6 | E69: 430 | F69: 1670.00 | G69: 8 | H69: 0.271 | J69: 国标
C70: Q355B | D70: 6 | E70: 430 | F70: 795.00 | G70: 1 | H70: 0.016 | J70: 国标
C71: Q355B | D71: 6 | E71: 430 | F71: 3270.00 | G71: 2 | H71: 0.132 | J71: 国标
C72: Q355B | D72: 6 | E72: 430 | F72: 2370.00 | G72: 1 | H72: 0.048 | J72: 国标
C73: Q355B | D73: 6 | E73: 430 | F73: 3965.00 | G73: 2 | H73: 0.161 | J73: 国标
C74: Q355B | D74: 6 | E74: 380 | F74: 895.00 | G74: 2 | H74: 0.032 | J74: 国标
C75: Q355B | D75: 6 | E75: 380 | F75: 2895.00 | G75: 2 | H75: 0.104 | J75: 国标
C76: Q355B | D76: 6 | E76: 480 | F76: 885.00 | G76: 2 | H76: 0.040 | J76: 国标
C77: Q355B | D77: 6 | E77: 480 | F77: 2970.00 | G77: 2 | H77: 0.134 | J77: 国标
C78: Q355B | D78: 6 | E78: 480 | F78: 7370.00 | G78: 1 | H78: 0.167 | J78: 国标
C79: Q355B | D79: 6 | E79: 480 | F79: 770.00 | G79: 1 | H79: 0.017 | J79: 国标
C80: Q355B | D80: 6 | E80: 480 | F80: 7805.00 | G80: 4 | H80: 0.706 | J80: 国标
C81: Q355B | D81: 6 | E81: 480 | F81: 8605.00 | G81: 1 | H81: 0.195 | J81: 国标
C82: Q355B | D82: 6 | E82: 480 | F82: 8020.00 | G82: 4 | H82: 0.725 | J82: 国标
C83: Q355B | D83: 6 | E83: 480 | F83: 7920.00 | G83: 4 | H83: 0.716 | J83: 国标
C84: Q355B | D84: 6 | E84: 480 | F84: 2320.00 | G84: 3 | H84: 0.157 | J84: 国标
C85: Q355B | D85: 6 | E85: 480 | F85: 7820.00 | G85: 2 | H85: 0.354 | J85: 国标
C86: Q355B | D86: 6 | E86: 480 | F86: 7220.00 | G86: 5 | H86: 0.816 | J86: 国标
C87: Q355B | D87: 6 | E87: 480 | F87: 1045.00 | G87: 1 | H87: 0.024 | J87: 国标
C88: Q355B | D88: 6 | E88: 480 | F88: 1020.00 | G88: 1 | H88: 0.023 | J88: 国标
C89: Q355B | D89: 6 | E89: 480 | F89: 3245.00 | G89: 1 | H89: 0.073 | J89: 国标
C90: Q355B | D90: 6 | E90: 480 | F90: 3995.00 | G90: 1 | H90: 0.090 | J90: 国标
C91: Q355B | D91: 6 | E91: 480 | F91: 2720.00 | G91: 1 | H91: 0.061 | J91: 国标
C92: Q355B | D92: 6 | E92: 480 | F92: 7765.00 | G92: 4 | H92: 0.702 | J92: 国标
C93: Q355B | D93: 6 | E93: 480 | F93: 7590.00 | G93: 6 | H93: 1.030 | J93: 国标
C94: Q355B | D94: 6 | E94: 480 | F94: 6940.00 | G94: 5 | H94: =D94*E94/1000*F94/1000*7.85/1000*G94 -> 0.784 | J94: 国标
C95: Q355B | D95: 6 | E95: 480 | F95: 3815.00 | G95: 1 | H95: 0.086 | J95: 国标
C96: Q355B | D96: 6 | E96: 480 | F96: 2865.00 | G96: 1 | H96: 0.065 | J96: 国标
C97: Q355B | D97: 6 | E97: 480 | F97: 5205.00 | G97: 1 | H97: 0.118 | J97: 国标
C98: Q355B | D98: 6 | E98: 480 | F98: 8605.00 | G98: 6 | H98: 1.167 | J98: 国标
C99: Q355B | D99: 6 | E99: 480 | F99: 5605.00 | G99: 2 | H99: 0.253 | J99: 国标
C100: Q355B | D100: 6 | E100: 480 | F100: 8605.00 | G100: 1 | H100: 0.195 | J100: 国标
C101: Q355B | D101: 6 | E101: 480 | F101: 5630.00 | G101: 1 | H101: 0.127 | J101: 国标
C102: Q355B | D102: 8 | E102: 200 | F102: 3100 | G102: 2 | H102: 0.078 | J102: 国标
C103: Q355B | D103: 8 | E103: 200 | F103: 3100 | G103: 2 | H103: 0.078 | J103: 国标
C104: Q355B | D104: 8 | E104: 200 | F104: 2900 | G104: 2 | H104: 0.073 | J104: 国标
C105: Q355B | D105: 8 | E105: 200 | F105: 2900 | G105: 2 | H105: 0.073 | J105: 国标
C106: Q355B | D106: 8 | E106: 200 | F106: 950 | G106: 4 | H106: 0.048 | J106: 国标
C107: Q355B | D107: 8 | E107: 200 | F107: 950 | G107: 4 | H107: 0.048 | J107: 国标
C108: Q355B | D108: 8 | E108: 200 | F108: 750 | G108: 4 | H108: 0.038 | J108: 国标
C109: Q355B | D109: 8 | E109: 200 | F109: 750 | G109: 4 | H109: 0.038 | J109: 国标
C110: Q355B | D110: 8 | E110: 200 | F110: 2600 | G110: 8 | H110: 0.261 | J110: 国标
C111: Q355B | D111: 8 | E111: 200 | F111: 2600 | G111: 8 | H111: 0.261 | J111: 国标
C112: Q355B | D112: 8 | E112: 200 | F112: 2500 | G112: 2 | H112: 0.063 | J112: 国标
C113: Q355B | D113: 8 | E113: 200 | F113: 2500 | G113: 2 | H113: 0.063 | J113: 国标
C114: Q355B | D114: 8 | E114: 150 | F114: 369 | G114: 4 | H114: 0.014 | J114: 国标
C115: Q355B | D115: 8 | E115: 150 | F115: 281 | G115: 4 | H115: 0.011 | J115: 国标
C116: Q355B | D116: 8 | E116: 150 | F116: 228 | G116: 6 | H116: 0.013 | J116: 国标
C117: Q355B | D117: 8 | E117: 150 | F117: 271 | G117: 6 | H117: 0.015 | J117: 国标
C118: Q355B | D118: 8 | E118: 150 | F118: 170 | G118: 8 | H118: 0.013 | J118: 国标
C119: Q355B | D119: 8 | E119: 150 | F119: 2800 | G119: 8 | H119: 0.211 | J119: 国标
C120: Q355B | D120: 8 | E120: 150 | F120: 2756 | G120: 4 | H120: 0.104 | J120: 国标
C121: Q355B | D121: 8 | E121: 150 | F121: 2707 | G121: 4 | H121: 0.102 | J121: 国标
C122: Q355B | D122: 8 | E122: 150 | F122: 338 | G122: 2 | H122: 0.006 | J122: 国标
C123: Q355B | D123: 8 | E123: 150 | F123: 381 | G123: 2 | H123: 0.007 | J123: 国标
C124: Q355B | D124: 8 | E124: 150 | F124: 2703 | G124: 8 | H124: 0.204 | J124: 国标
C125: Q355B | D125: 8 | E125: 150 | F125: 2527 | G125: 8 | H125: 0.190 | J125: 国标
C126: Q355B | D126: 8 | E126: 280 | F126: 3100 | G126: 5 | H126: 0.273 | J126: 国标
C127: Q355B | D127: 8 | E127: 200 | F127: 3900 | G127: 1 | H127: 0.049 | J127: 国标
C128: Q355B | D128: 8 | E128: 200 | F128: 3900 | G128: 1 | H128: 0.049 | J128: 国标
C129: Q355B | D129: 8 | E129: 200 | F129: 3825 | G129: 2 | H129: 0.096 | J129: 国标
C130: Q355B | D130: 8 | E130: 200 | F130: 3825 | G130: 2 | H130: 0.096 | J130: 国标
C131: Q355B | D131: 8 | E131: 200 | F131: 1575 | G131: 4 | H131: 0.079 | J131: 国标
C132: Q355B | D132: 8 | E132: 200 | F132: 1575 | G132: 4 | H132: 0.079 | J132: 国标
C133: Q355B | D133: 8 | E133: 200 | F133: 2510 | G133: 2 | H133: 0.063 | J133: 国标
C134: Q355B | D134: 8 | E134: 200 | F134: 2510 | G134: 2 | H134: 0.063 | J134: 国标
C135: Q355B | D135: 8 | E135: 200 | F135: 3525 | G135: 3 | H135: 0.133 | J135: 国标
C136: Q355B | D136: 8 | E136: 200 | F136: 3525 | G136: 3 | H136: 0.133 | J136: 国标
C137: Q355B | D137: 8 | E137: 150 | F137: 187 | G137: 6 | H137: 0.011 | J137: 国标
C138: Q355B | D138: 8 | E138: 150 | F138: 261 | G138: 18 | H138: 0.044 | J138: 国标
C139: Q355B | D139: 8 | E139: 150 | F139: 2682 | G139: 6 | H139: 0.152 | J139: 国标
C140: Q355B | D140: 8 | E140: 150 | F140: 2768 | G140: 6 | H140: 0.156 | J140: 国标
C141: Q355B | D141: 8 | E141: 150 | F141: 2689 | G141: 4 | H141: 0.101 | J141: 国标
C142: Q355B | D142: 8 | E142: 150 | F142: 2825 | G142: 2 | H142: 0.053 | J142: 国标
C143: Q355B | D143: 8 | E143: 150 | F143: 2538 | G143: 6 | H143: 0.143 | J143: 国标
C144: Q355B | D144: 8 | E144: 280 | F144: 3900 | G144: 3 | H144: 0.206 | J144: 国标
C145: Q355B | D145: 8 | E145: 200 | F145: 3265 | G145: 1 | H145: 0.041 | J145: 国标
C146: Q355B | D146: 8 | E146: 200 | F146: 3265 | G146: 1 | H146: 0.041 | J146: 国标
C147: Q355B | D147: 8 | E147: 200 | F147: 2040 | G147: 2 | H147: 0.051 | J147: 国标
C148: Q355B | D148: 8 | E148: 200 | F148: 2040 | G148: 2 | H148: 0.051 | J148: 国标
C149: Q355B | D149: 8 | E149: 200 | F149: 990 | G149: 2 | H149: 0.025 | J149: 国标
C150: Q355B | D150: 8 | E150: 200 | F150: 990 | G150: 2 | H150: 0.025 | J150: 国标
C151: Q355B | D151: 8 | E151: 200 | F151: 365 | G151: 2 | H151: 0.009 | J151: 国标
C152: Q355B | D152: 8 | E152: 200 | F152: 365 | G152: 2 | H152: 0.009 | J152: 国标
C153: Q355B | D153: 8 | E153: 200 | F153: 2090 | G153: 1 | H153: 0.026 | J153: 国标
C154: Q355B | D154: 8 | E154: 200 | F154: 2090 | G154: 1 | H154: 0.026 | J154: 国标
C155: Q355B | D155: 8 | E155: 200 | F155: 2065 | G155: 6 | H155: 0.156 | J155: 国标
C156: Q355B | D156: 8 | E156: 200 | F156: 2065 | G156: 6 | H156: 0.156 | J156: 国标
C157: Q355B | D157: 8 | E157: 200 | F157: 3265 | G157: 3 | H157: 0.123 | J157: 国标
C158: Q355B | D158: 8 | E158: 200 | F158: 3265 | G158: 3 | H158: =D158*E158/1000*F158/1000*7.85/1000*G158 -> 0.123 | J158: 国标
C159: Q355B | D159: 8 | E159: 200 | F159: 2965 | G159: 4 | H159: 0.149 | J159: 国标
C160: Q355B | D160: 8 | E160: 200 | F160: 2965 | G160: 4 | H160: 0.149 | J160: 国标
C161: Q355B | D161: 8 | E161: 200 | F161: 1990 | G161: 1 | H161: 0.025 | J161: 国标
C162: Q355B | D162: 8 | E162: 200 | F162: 1990 | G162: 1 | H162: 0.025 | J162: 国标
C163: Q355B | D163: 10 | E163: 200 | F163: 3100.00 | G163: 10 | H163: 0.487 | J163: 国标
C164: Q355B | D164: 10 | E164: 200 | F164: 3900.00 | G164: 6 | H164: 0.367 | J164: 国标
C165: Q355B | D165: 10 | E165: 472 | F165: 6290.00 | G165: 2 | H165: 0.466 | J165: 国标
C166: Q355B | D166: 10 | E166: 472 | F166: 6590.00 | G166: 3 | H166: 0.733 | J166: 国标
C167: Q355B | D167: 10 | E167: 472 | F167: 6390.00 | G167: 10 | H167: 2.368 | J167: 国标
C168: Q355B | D168: 10 | E168: 472 | F168: 7365.00 | G168: 2 | H168: 0.546 | J168: 国标
C169: Q355B | D169: 10 | E169: 472 | F169: 1705.00 | G169: 8 | H169: 0.505 | J169: 国标
C170: Q355B | D170: 10 | E170: 472 | F170: 1805.00 | G170: 7 | H170: 0.468 | J170: 国标
C171: Q355B | D171: 10 | E171: 472 | F171: 1799.00 | G171: 1 | H171: 0.067 | J171: 国标
C172: Q355B | D172: 10 | E172: 472 | F172: 690.00 | G172: 4 | H172: 0.102 | J172: 国标
C173: Q355B | D173: 10 | E173: 472 | F173: 6790.00 | G173: 15 | H173: 3.774 | J173: 国标
C174: Q355B | D174: 10 | E174: 472 | F174: 6740.00 | G174: 4 | H174: 0.999 | J174: 国标
C175: Q355B | D175: 10 | E175: 472 | F175: 6515.00 | G175: 3 | H175: 0.724 | J175: 国标
C176: Q355B | D176: 10 | E176: 472 | F176: 1590.00 | G176: 4 | H176: 0.236 | J176: 国标
C177: Q355B | D177: 10 | E177: 250 | F177: 2050.00 | G177: 2 | H177: 0.080 | J177: 国标
C178: Q355B | D178: 10 | E178: 250 | F178: 2375.00 | G178: 2 | H178: 0.093 | J178: 国标
C179: Q355B | D179: 10 | E179: 250 | F179: 6790.00 | G179: 4 | H179: 0.533 | J179: 国标
C180: Q355B | D180: 10 | E180: 250 | F180: 6740.00 | G180: 14 | H180: 1.852 | J180: 国标
C181: Q355B | D181: 10 | E181: 250 | F181: 3740.00 | G181: 14 | H181: 1.028 | J181: 国标
C182: Q355B | D182: 10 | E182: 250 | F182: 6965.00 | G182: 8 | H182: 1.094 | J182: 国标
C183: Q355B | D183: 10 | E183: 250 | F183: 6940.00 | G183: 72 | H183: 9.806 | J183: 国标
C184: Q355B | D184: 10 | E184: 250 | F184: 6745.00 | G184: 16 | H184: 2.118 | J184: 国标
C185: Q355B | D185: 10 | E185: 250 | F185: 2470.00 | G185: 2 | H185: 0.097 | J185: 国标
C186: Q355B | D186: 10 | E186: 250 | F186: 770.00 | G186: 6 | H186: 0.091 | J186: 国标
C187: Q355B | D187: 10 | E187: 250 | F187: 1670.00 | G187: 16 | H187: 0.524 | J187: 国标
C188: Q355B | D188: 10 | E188: 250 | F188: 795.00 | G188: 2 | H188: 0.031 | J188: 国标
C189: Q355B | D189: 10 | E189: 250 | F189: 3270.00 | G189: 4 | H189: 0.257 | J189: 国标
C190: Q355B | D190: 10 | E190: 250 | F190: 2370.00 | G190: 2 | H190: 0.093 | J190: 国标
C191: Q355B | D191: 10 | E191: 250 | F191: 3965.00 | G191: 4 | H191: 0.311 | J191: 国标
C192: Q355B | D192: 10 | E192: 200 | F192: 895.00 | G192: 4 | H192: 0.056 | J192: 国标
C193: Q355B | D193: 10 | E193: 200 | F193: 2895.00 | G193: 4 | H193: 0.182 | J193: 国标
C194: Q355B | D194: 10 | E194: 200 | F194: 885.00 | G194: 4 | H194: 0.056 | J194: 国标
C195: Q355B | D195: 10 | E195: 200 | F195: 2970.00 | G195: 4 | H195: 0.187 | J195: 国标
C196: Q355B | D196: 10 | E196: 200 | F196: 7370.00 | G196: 2 | H196: 0.231 | J196: 国标
C197: Q355B | D197: 10 | E197: 200 | F197: 770.00 | G197: 2 | H197: 0.024 | J197: 国标
C198: Q355B | D198: 10 | E198: 200 | F198: 7805.00 | G198: 8 | H198: 0.980 | J198: 国标
C199: Q355B | D199: 10 | E199: 200 | F199: 8605.00 | G199: 16 | H199: 2.162 | J199: 国标
C200: Q355B | D200: 10 | E200: 200 | F200: 8020.00 | G200: 8 | H200: 1.007 | J200: 国标
... 143 more rows

Sheet Sheet3
A1: 方垠钢结构公司 开标 明 细 表 询价日期：2022-9-27
A2: 询 价 信 息
A3: 序号 | B3: 材质 | C3: 材料规格 | D3: 标准要求 | E3: 数量 | F3: 商家 | G3: 报价(元/吨) | H3: 商家 | I3: 报价(元/吨) | J3: 商家 | K3: 报价(元/吨) | L3: 商家 | M3: 报价(元/吨) | N3: 商家 | O3: 报价(元/吨) | P3: 商家 | Q3: 报价(元/吨) | R3: 商家 | S3: 报价(元/吨) | T3: 结果定义
A4: 板材
A13: 板材
A30: 货到三日内付款。
A31: 运输安排： 过磅含税含运费 其它： 结果定义： 低价中标
A32: 询价人员： 部门负责人： 分管领导：
